[Event "DMP-III LIGA Senior PK 2020"]
[Site "Bystre"]
[Date "2020.07.08"]
[Round "1.2"]
[White "Socha, Kamil"]
[Black "Marciniak, Leonard"]
[Result "1/2-1/2"]
[ECO "A49"]
[WhiteElo "1817"]
[BlackElo "1672"]
[Annotator "NA RC"]
[PlyCount "66"]
[EventDate "2020.07.05"]
[EventType "team-tourn"]
[EventCountry "POL"]
[SourceTitle "playchess.com"]
[Source "ChessBase"]
[SourceQuality "1"]
[TimeControl "5400+30"]

1. d4 {[%emt 0:00:00]} Nf6 {[%emt 0:00:00]} 2. Nf3 {[%emt 0:00:00]} g6 {[%emt 0:00:40]} 3. g3 {[%emt 0:00:03]} Bg7 {[%emt 0:00:18]} 4. Bg2 {[%emt 0:00:10]} O-O {[%emt 0:00:48]} 5. O-O {[%emt 0:00:09]} d6 {[%emt 0:01:38]} 6. b3 {[%emt 0:00:31]} Nbd7 {[%emt 0:01:35]} 7. Bb2 {[%emt 0:00:12]} c5 {[%emt 0:00:38]} 8. c4 {[%emt 0:00:55]} cxd4 {[%emt 0:00:39]} 9. Nxd4 {[%emt 0:00:31]} Qc7 {[%emt 0:02:12]} 10. Nc3 {[%emt 0:00:44]} a6 {[%emt 0:01:08]} 11. e4 {[%emt 0:01:21]} Nc5 {[%emt 0:03:01]} 12. h3 {[%emt 0:01:30]} e5 {[%emt 0:02:21]} 13. Nc2 {[%emt 0:00:38]} Bd7 {[%emt 0:04:42]} 14. Ne3 $11 {[%emt 0:01:33]} Bc6 {[%emt 0:02:41]} 15. Ned5 {[%emt 0:02:17]} Bxd5 {[%emt 0:08:46]} 16. Nxd5 {[%emt 0:00:52]} Nxd5 {[%emt 0:08:46]} 17. Qxd5 {[%emt 0:01:22]} Ne6 {[%emt 0:00:06]} 18. Qd3 {[%emt 0:29:31]} Nd4 {[%emt 0:01:48]} 19. f4 {[%emt 0:01:14]} Qb6 {[%emt 0:01:49]} 20. Kh1 {[%emt 0:00:21]} f5 {[%emt 0:02:58]} 21. Bxd4 {[%emt 0:16:58]} exd4 {[%emt 0:01:49]} 22. Rae1 {[%emt 0:02:16]} fxe4 {[%emt 0:06:09]} 23. Rxe4 {[%emt 0:04:56]} Rae8 {[%emt 0:02:25]} 24. Rfe1 {[%emt 0:10:37]} Qd8 {[%emt 0:07:07]} 25. Qe2 {[%emt 0:04:36]} Rxe4 {[%emt 0:00:33]} 26. Qxe4 {[%emt 0:01:16]} b6 {[%emt 0:01:19]} 27. Kh2 {[%emt 0:03:58]} Bf6 {[%emt 0:05:05]} 28. Qd5+ {[%emt 0:02:26]} Kg7 {[%emt 0:06:59]} 29. Re6 {[%emt 0:00:29]} Rf7 {[%emt 0:01:39]} 30. Rxd6 {[%emt 0:01:22]} Qc7 {[%emt 0:01:28]} 31. Be4 {[%emt 0:02:52]} Re7 {[%emt 0:04:59]} 32. Rd8 {[%emt 0:03:13]} Rf7 {[%emt 0:01:58]} 33. Rd6 {[%emt 0:02:12]} Re7 {[%emt 0:00:06]} 1/2-1/2

[Event "DMP-III LIGA Senior PK 2020"]
[Site "Bystre"]
[Date "2020.07.08"]
[Round "1.4"]
[White "Korys, Dawid"]
[Black "Karas, Kacper"]
[Result "1/2-1/2"]
[ECO "D10"]
[WhiteElo "1343"]
[BlackElo "1150"]
[Annotator "NA RC"]
[PlyCount "44"]
[EventDate "2020.07.05"]
[EventType "team-tourn"]
[EventCountry "POL"]
[SourceTitle "playchess.com"]
[Source "ChessBase"]
[SourceQuality "1"]
[TimeControl "5400+30"]

1. d4 {[%emt 0:00:00]} d5 {[%emt 0:00:00]} 2. Nf3 {[%emt 0:00:00]} Nf6 {[%emt 0:00:00]} 3. c4 {[%emt 0:00:15]} c6 {[%emt 0:00:00]} 4. cxd5 {[%emt 0:00:13]} cxd5 {[%emt 0:00:15]} 5. Bg5 {[%emt 0:00:12]} Ne4 {[%emt 0:01:16]} 6. Nc3 {[%emt 0:03:20]} Nxg5 {[%emt 0:03:09]} 7. Nxg5 {[%emt 0:00:06]} e6 {[%emt 0:04:20]} 8. Nf3 {[%emt 0:00:10]} Bd6 {[%emt 0:02:47]} 9. e3 {[%emt 0:00:14]} Nd7 {[%emt 0:03:24]} 10. Bd3 {[%emt 0:00:47]} Nf6 {[%emt 0:00:09]} 11. h3 {[%emt 0:00:23]} Bd7 {[%emt 0:00:20]} 12. O-O {[%emt 0:00:23]} O-O {[%emt 0:00:53]} 13. e4 {[%emt 0:11:54]} dxe4 {[%emt 0:01:20]} 14. Nxe4 {[%emt 0:00:08]} Be7 {[%emt 0:04:20]} 15. Ne5 {[%emt 0:11:58]} Rc8 {[%emt 0:06:45]} 16. Qb3 {[%emt 0:17:49]} Bc6 {[%emt 0:17:05]} 17. Nxc6 {[%emt 0:01:00]} bxc6 {[%emt 0:01:11]} 18. Qc4 {[%emt 0:08:28]} Nxe4 {[%emt 0:04:01]} 19. Bxe4 {[%emt 0:00:12]} c5 {[%emt 0:00:11]} 20. Rad1 {[%emt 0:01:01]} cxd4 {[%emt 0:01:32]} 21. Qxd4 {[%emt 0:00:09]} Qxd4 {[%emt 0:04:39]} 22. Rxd4 {[%emt 0:00:05]} Bc5 {[%emt 0:13:07]} 1/2-1/2

[Event "DMP-III LIGA Senior PK 2020"]
[Site "Bystre"]
[Date "2020.07.08"]
[Round "1.5"]
[White "Mastej, Krzysztof"]
[Black "Medrygal, Rafal"]
[Result "0-1"]
[ECO "C54"]
[WhiteElo "1303"]
[BlackElo "1258"]
[Annotator "NA"]
[PlyCount "74"]
[EventDate "2020.07.05"]
[EventType "team-tourn"]
[EventCountry "POL"]
[SourceTitle "playchess.com"]
[Source "ChessBase"]
[SourceQuality "1"]
[TimeControl "5400+30"]

1. e4 {[%emt 0:00:00]} e5 {[%emt 0:00:00]} 2. Nf3 {[%emt 0:00:00]} Nc6 {[%emt 0:00:00]} 3. Bc4 {[%emt 0:00:00]} Bc5 {[%emt 0:00:14]} 4. c3 {[%emt 0:00:00]} Nf6 {[%emt 0:00:28]} 5. d4 {[%emt 0:00:01]} exd4 {[%emt 0:01:20]} 6. cxd4 {[%emt 0:00:06]} Bb4+ {[%emt 0:00:28]} 7. Nc3 {[%emt 0:00:08]} Bxc3+ {[%emt 0:03:13]} 8. bxc3 {[%emt 0:00:07]} Nxe4 {[%emt 0:00:41]} 9. O-O {[%emt 0:00:15]} O-O {[%emt 0:00:57]} 10. Re1 {[%emt 0:00:43]} d5 {[%emt 0:00:40]} 11. Bd3 {[%emt 0:00:18]} Re8 {[%emt 0:02:42]} 12. Qc2 {[%emt 0:00:42]} Bf5 {[%emt 0:06:40]} 13. Rb1 {[%emt 0:01:32]} Rb8 {[%emt 0:01:37]} 14. Bf4 {[%emt 0:01:53]} Bg6 {[%emt 0:01:09]} 15. Ne5 {[%emt 0:05:47]} Nxe5 {[%emt 0:05:06]} 16. Bxe5 {[%emt 0:00:23]} Nf6 {[%emt 0:00:43]} 17. Bg3 {[%emt 0:01:16]} Qd7 {[%emt 0:02:00]} 18. h3 {[%emt 0:01:46]} Ne4 {[%emt 0:05:12]} 19. Be5 {[%emt 0:01:14]} a6 {[%emt 0:04:30]} 20. f3 {[%emt 0:01:36]} Nd6 {[%emt 0:02:30]} 21. Bxd6 {[%emt 0:03:38]} Rxe1+ {[%emt 0:03:19]} 22. Rxe1 {[%emt 0:00:14]} Qxd6 {[%emt 0:00:18]} 23. Bxg6 {[%emt 0:00:33]} hxg6 {[%emt 0:00:20]} 24. Kf2 {[%emt 0:00:29]} c5 {[%emt 0:02:41]} 25. Qb3 {[%emt 0:01:31]} c4 {[%emt 0:05:31]} 26. Qb2 {[%emt 0:01:13]} b5 {[%emt 0:01:44]} 27. a3 {[%emt 0:01:55]} Kf8 {[%emt 0:01:15]} 28. g3 {[%emt 0:01:44]} Re8 {[%emt 0:01:09]} 29. Ra1 {[%emt 0:02:50]} Qe6 {[%emt 0:01:43]} 30. g4 {[%emt 0:02:29]} Qe3+ {[%emt 0:02:09]} 31. Kg3 {[%emt 0:00:36]} Qd3 {[%emt 0:07:12]} 32. Qb4+ {[%emt 0:02:04]} Kg8 {[%emt 0:00:19]} 33. a4 {[%emt 0:02:47]} Re3 {[%emt 0:00:53]} 34. Qd6 {[%emt 0:00:52]} Rxf3+ {[%emt 0:00:33]} 35. Kg2 {[%emt 0:00:37]} Qe2+ {[%emt 0:02:44]} 36. Kg1 {[%emt 0:01:09]} Qf2+ {[%emt 0:00:23]} 37. Kh1 {[%emt 0:00:45]} Rxh3+ {[%emt 0:00:11]} 0-1

[Event "DMP-III LIGA Senior PK 2020"]
[Site "Bystre"]
[Date "2020.07.08"]
[Round "1.6"]
[White "Trybowska, Anna"]
[Black "Uliasz, Katarzyna"]
[Result "1-0"]
[ECO "E61"]
[WhiteElo "1583"]
[BlackElo "1386"]
[Annotator "NA RC"]
[PlyCount "67"]
[EventDate "2020.07.05"]
[EventType "team-tourn"]
[EventCountry "POL"]
[SourceTitle "playchess.com"]
[Source "ChessBase"]
[SourceQuality "1"]
[TimeControl "5400+30"]

1. d4 Nf6 2. c4 g6 3. Nc3 Bg7 4. Nf3 O-O 5. Bg5 d6 6. e4 {[%emt 0:06:30]} Nbd7 {[%emt 0:03:29]} 7. Bd3 {[%emt 0:00:41]} e5 {[%emt 0:02:09]} 8. d5 {[%emt 0:00:52]} Nc5 {[%emt 0:00:46]} 9. Bc2 {[%emt 0:00:35]} a5 {[%emt 0:00:07]} 10. a3 {[%emt 0:00:13]} h6 {[%emt 0:07:12]} 11. Be3 {[%emt 0:00:33]} Nh5 {[%emt 0:04:36]} 12. Qd2 {[%emt 0:02:09]} Kh7 {[%emt 0:01:32]} 13. h3 {[%emt 0:01:52]} g5 {[%emt 0:04:59]} 14. g3 {[%emt 0:10:40]} Qf6 {[%emt 0:06:14]} 15. Bd1 {[%emt 0:03:44]} Qg6 {[%emt 0:09:49]} 16. Bxc5 {[%emt 0:02:18]} dxc5 {[%emt 0:00:15]} 17. Qe2 {[%emt 0:04:25]} g4 {[%emt 0:12:55]} 18. Nh4 {[%emt 0:02:58]} Qb6 {[%emt 0:04:43]} 19. Na4 {[%emt 0:02:00]} Qd6 {[%emt 0:01:39]} 20. hxg4 {[%emt 0:00:19]} Nf6 {[%emt 0:00:42]} 21. g5 {[%emt 0:02:03]} Ng8 {[%emt 0:02:08]} 22. Nf5 {[%emt 0:00:56]} Bxf5 {[%emt 0:00:31]} 23. exf5 {[%emt 0:00:03]} b5 {[%emt 0:02:52]} 24. f6 {[%emt 0:02:22]} Nxf6 {[%emt 0:10:30]} 25. gxf6 {[%emt 0:00:05]} Bxf6 {[%emt 0:00:52]} 26. Bc2+ {[%emt 0:00:21]} Kg7 {[%emt 0:00:38]} 27. Qe4 {[%emt 0:00:57]} Rh8 {[%emt 0:00:29]} 28. cxb5 {[%emt 0:00:18]} Bg5 {[%emt 0:01:02]} 29. Nc3 {[%emt 0:01:05]} Raf8 {[%emt 0:00:29]} 30. Qf5 {[%emt 0:00:16]} c4 {[%emt 0:00:59]} 31. Rd1 {[%emt 0:00:40]} Rb8 {[%emt 0:02:48]} 32. Ne4 {[%emt 0:00:13]} Qe7 {[%emt 0:00:46]} 33. Nxg5 {[%emt 0:00:05]} hxg5 {[%emt 0:00:07]} 34. Rh7+ {[%emt 0:00:20]} 1-0

[Event "DMP-III LIGA Senior PK 2020"]
[Site "Bystre"]
[Date "2020.07.08"]
[Round "1.8"]
[White "Mazurkiewicz, Andrzej"]
[Black "Dobrzanski, Krzysztof"]
[Result "1-0"]
[ECO "E91"]
[WhiteElo "1608"]
[BlackElo "1722"]
[Annotator "NA RC"]
[PlyCount "101"]
[EventDate "2020.07.05"]
[EventType "team-tourn"]
[EventCountry "POL"]
[SourceTitle "playchess.com"]
[Source "ChessBase"]
[SourceQuality "1"]
[TimeControl "5400+30"]

1. d4 {[%emt 0:00:00]} Nf6 {[%emt 0:00:00]} 2. c4 {[%emt 0:00:00]} g6 {[%emt 0:00:08]} 3. Nc3 {[%emt 0:00:03]} Bg7 {[%emt 0:00:36]} 4. Nf3 {[%emt 0:02:08]} d6 {[%emt 0:01:35]} 5. e4 {[%emt 0:00:54]} O-O {[%emt 0:01:47]} 6. Be2 {[%emt 0:01:03]} c5 {[%emt 0:01:05]} 7. d5 {[%emt 0:01:54]} Bg4 {[%emt 0:08:15]} 8. O-O {[%emt 0:00:43]} Nbd7 {[%emt 0:00:18]} 9. h3 {[%emt 0:00:39]} Bxf3 {[%emt 0:00:21]} 10. Bxf3 {[%emt 0:00:11]} Nb6 {[%emt 0:06:15]} 11. Be2 {[%emt 0:01:08]} Nfd7 {[%emt 0:05:29]} 12. Qc2 {[%emt 0:01:21]} a6 {[%emt 0:07:03]} 13. Rb1 {[%emt 0:00:47]} e5 {[%emt 0:06:28]} 14. a3 {[%emt 0:03:30]} Rb8 {[%emt 0:05:08]} 15. Bd2 {[%emt 0:02:10]} Qe7 {[%emt 0:05:46]} 16. Nd1 {[%emt 0:01:00]} Nf6 {[%emt 0:05:17]} 17. Ne3 {[%emt 0:02:32]} Nbd7 {[%emt 0:02:09]} 18. a4 {[%emt 0:02:04]} Bh6 {[%emt 0:03:08]} 19. Nf5 {[%emt 0:02:16]} gxf5 {[%emt 0:00:35]} 20. Bxh6 {[%emt 0:00:17]} Nxe4 {[%emt 0:00:30]} 21. Bxf8 {[%emt 0:01:34]} Rxf8 {[%emt 0:00:52]} 22. Bd3 {[%emt 0:02:32]} Ndf6 {[%emt 0:05:37]} 23. Kh2 {[%emt 0:02:25]} Ng5 {[%emt 0:03:48]} 24. Bxf5 {[%emt 0:04:53]} e4 {[%emt 0:06:25]} 25. Qc3 {[%emt 0:01:51]} h6 {[%emt 0:02:14]} 26. Rbe1 {[%emt 0:03:38]} Re8 {[%emt 0:01:32]} 27. Re3 {[%emt 0:04:42]} Qd8 {[%emt 0:02:38]} 28. h4 {[%emt 0:06:56]} Ngh7 {[%emt 0:00:43]} 29. Rg3+ {[%emt 0:01:47]} Kh8 {[%emt 0:00:55]} 30. Re1 {[%emt 0:01:52]} Re5 {[%emt 0:00:18]} 31. Bxh7 Kxh7 {[%emt 0:00:30]} 32. Kg1 {[%emt 0:12:57]} Nh5 {[%emt 0:00:53]} 33. Rh3 {[%emt 0:02:02]} Nf4 {[%emt 0:00:25]} 34. Rh2 {[%emt 0:01:08]} f5 {[%emt 0:00:58]} 35. Re3 {[%emt 0:08:00]} Nh5 {[%emt 0:01:13]} 36. Qc2 {[%emt 0:01:44]} Qe7 {[%emt 0:01:13]} 37. f3 {[%emt 0:01:41]} Nf6 {[%emt 0:00:14]} 38. f4 {[%emt 0:04:32]} Ng4 {[%emt 0:00:42]} 39. Rhh3 {[%emt 0:03:16]} Nxe3 {[%emt 0:00:42]} 40. Rxe3 {[%emt 0:00:24]} Qxh4 {[%emt 0:00:07]} 41. fxe5 {[%emt 0:00:25]} dxe5 {[%emt 0:00:17]} 42. Qf2 {[%emt 0:01:21]} Qg5 {[%emt 0:00:24]} 43. Rb3 {[%emt 0:02:37]} Qg4 {[%emt 0:02:19]} 44. Rxb7+ {[%emt 0:02:54]} Kg8 {[%emt 0:00:27]} 45. b4 {[%emt 0:03:53]} Qd1+ {[%emt 0:01:22]} 46. Qf1 {[%emt 0:00:21]} Qd4+ {[%emt 0:00:37]} 47. Kh1 {[%emt 0:00:27]} e3 {[%emt 0:00:27]} 48. bxc5 {[%emt 0:03:18]} Qh4+ {[%emt 0:01:06]} 49. Kg1 {[%emt 0:00:13]} Qd4 {[%emt 0:00:04]} 50. Qe2 {[%emt 0:01:00]} f4 {[%emt 0:01:53]} 51. Qg4+ {[%emt 0:00:22]} 1-0

[Event "DMP-III LIGA Senior PK 2020"]
[Site "Bystre"]
[Date "2020.07.08"]
[Round "1.9"]
[White "Palacki, Rafal"]
[Black "Chowaniec, Artur"]
[Result "1-0"]
[ECO "B97"]
[WhiteElo "1755"]
[BlackElo "1530"]
[Annotator "NA RC"]
[PlyCount "83"]
[EventDate "2020.07.05"]
[EventType "team-tourn"]
[EventCountry "POL"]
[SourceTitle "playchess.com"]
[Source "ChessBase"]
[SourceQuality "1"]
[TimeControl "5400+30"]

1. e4 {[%emt 0:00:00]} c5 {[%emt 0:00:00]} 2. Nf3 {[%emt 0:00:34]} d6 {[%emt 0:00:00]} 3. d4 {[%emt 0:00:09]} cxd4 {[%emt 0:00:00]} 4. Nxd4 {[%emt 0:00:08]} Nf6 {[%emt 0:00:00]} 5. Nc3 {[%emt 0:00:08]} a6 {[%emt 0:00:01]} 6. Bg5 {[%emt 0:00:47]} e6 {[%emt 0:00:09]} 7. f4 {[%emt 0:00:07]} Qb6 {[%emt 0:00:13]} 8. Qd2 {[%emt 0:00:47]} Nc6 {[%emt 0:00:27]} 9. Nb3 {[%emt 0:10:08]} h6 {[%emt 0:00:13]} 10. Bh4 {[%emt 0:02:22]} Be7 {[%emt 0:05:41]} 11. O-O-O {[%emt 0:02:07]} Qc7 {[%emt 0:08:41]} 12. Bxf6 {[%emt 0:17:16]} gxf6 {[%emt 0:00:20]} 13. f5 {[%emt 0:01:33]} Bd7 {[%emt 0:01:19]} 14. Be2 {[%emt 0:05:47]} h5 {[%emt 0:01:30]} 15. g4 {[%emt 0:04:58]} h4 {[%emt 0:00:16]} 16. h3 {[%emt 0:01:25]} O-O-O {[%emt 0:00:21]} 17. Kb1 {[%emt 0:01:17]} Kb8 {[%emt 0:00:28]} 18. Qf4 {[%emt 0:02:21]} Ne5 {[%emt 0:02:18]} 19. Rd4 {[%emt 0:08:10]} Qb6 {[%emt 0:09:01]} 20. Rhd1 {[%emt 0:03:56]} Nc6 {[%emt 0:02:45]} 21. R4d2 {[%emt 0:04:35]} Bf8 {[%emt 0:02:08]} 22. fxe6 {[%emt 0:05:21]} Bxe6 {[%emt 0:00:36]} 23. Qxf6 {[%emt 0:00:38]} Be7 {[%emt 0:00:35]} 24. Qf4 {[%emt 0:01:29]} Rhg8 {[%emt 0:00:47]} 25. Qh2 {[%emt 0:01:06]} Ne5 {[%emt 0:01:22]} 26. Nd4 {[%emt 0:04:34]} Bg5 {[%emt 0:02:00]} 27. Na4 {[%emt 0:06:15]} Qc7 {[%emt 0:02:25]} 28. Nxe6 {[%emt 0:00:28]} fxe6 {[%emt 0:00:13]} 29. Rd4 {[%emt 0:00:58]} Qa5 {[%emt 0:04:10]} 30. Rxd6 {[%emt 0:02:31]} Rxd6 {[%emt 0:00:45]} 31. Rxd6 {[%emt 0:00:05]} Ka8 {[%emt 0:01:34]} 32. Nb6+ {[%emt 0:02:08]} Ka7 {[%emt 0:00:13]} 33. Qf2 {[%emt 0:00:41]} Kb8 {[%emt 0:00:18]} 34. a3 {[%emt 0:01:02]} Be7 {[%emt 0:00:24]} 35. Rxe6 {[%emt 0:01:24]} Rf8 {[%emt 0:02:40]} 36. Qh2 {[%emt 0:01:21]} Qe1+ {[%emt 0:02:09]} 37. Ka2 {[%emt 0:00:03]} Rf2 {[%emt 0:00:37]} 38. Qxe5+ {[%emt 0:00:13]} Ka7 {[%emt 0:00:08]} 39. Nc8+ {[%emt 0:01:29]} Ka8 {[%emt 0:00:12]} 40. Nb6+ {[%emt 0:00:34]} Ka7 {[%emt 0:00:09]} 41. Nd7 {[%emt 0:00:08]} Qxe2 {[%emt 0:00:32]} 42. Qb8# {[%emt 0:00:11]} 1-0

[Event "DMP-III LIGA Senior PK 2020"]
[Site "Bystre"]
[Date "2020.07.08"]
[Round "1.10"]
[White "Wrobel, Dariusz"]
[Black "Zajac, Karol"]
[Result "0-1"]
[ECO "C50"]
[WhiteElo "1427"]
[BlackElo "1652"]
[Annotator "NA RC"]
[PlyCount "66"]
[EventDate "2020.07.05"]
[EventType "team-tourn"]
[EventCountry "POL"]
[SourceTitle "playchess.com"]
[Source "ChessBase"]
[SourceQuality "1"]
[TimeControl "5400+30"]

1. e4 {[%emt 0:00:00]} e5 {[%emt 0:00:00]} 2. Nf3 {[%emt 0:00:00]} Nc6 {[%emt 0:00:05]} 3. Bc4 {[%emt 0:00:09]} Bc5 {[%emt 0:00:11]} 4. O-O {[%emt 0:00:07]} Nf6 {[%emt 0:00:07]} 5. d4 {[%emt 0:00:06]} Bxd4 {[%emt 0:02:41]} 6. Nxd4 {[%emt 0:00:12]} Nxd4 {[%emt 0:00:09]} 7. f4 {[%emt 0:00:14]} d6 {[%emt 0:00:09]} 8. fxe5 {[%emt 0:00:56]} dxe5 {[%emt 0:00:12]} 9. Bg5 {[%emt 0:00:10]} Qe7 {[%emt 0:02:12]} 10. Nc3 {[%emt 0:00:37]} Qc5 {[%emt 0:24:07]} 11. Bxf6 {[%emt 0:00:10]} gxf6 {[%emt 0:01:45]} 12. Bxf7+ {[%emt 0:02:05]} Kxf7 {[%emt 0:00:53]} 13. Qh5+ {[%emt 0:00:16]} Kg7 {[%emt 0:02:52]} 14. Kh1 {[%emt 0:00:59]} Be6 {[%emt 0:02:45]} 15. Rf2 {[%emt 0:01:56]} Raf8 {[%emt 0:07:59]} 16. Raf1 {[%emt 0:00:34]} c6 {[%emt 0:03:10]} 17. Qh4 {[%emt 0:00:24]} Rf7 {[%emt 0:16:15]} 18. Rxf6 {[%emt 0:01:17]} Rhf8 {[%emt 0:01:11]} 19. Qh6+ {[%emt 0:05:28]} Kg8 {[%emt 0:03:39]} 20. g4 {[%emt 0:00:25]} Rxf6 {[%emt 0:01:04]} 21. Rxf6 {[%emt 0:00:11]} Rxf6 {[%emt 0:00:24]} 22. Qxf6 {[%emt 0:00:12]} Qf8 {[%emt 0:00:32]} 23. Qg5+ {[%emt 0:00:48]} Qg7 {[%emt 0:01:54]} 24. Qd8+ {[%emt 0:00:47]} Kf7 {[%emt 0:00:14]} 25. g5 {[%emt 0:01:29]} Kg6 {[%emt 0:01:09]} 26. h4 {[%emt 0:06:11]} Kh5 {[%emt 0:01:14]} 27. Kh2 {[%emt 0:02:47]} Kxh4 {[%emt 0:01:42]} 28. g6+ {[%emt 0:00:44]} Kg4 {[%emt 0:00:11]} 29. Nd1 {[%emt 0:01:07]} Qh6+ {[%emt 0:00:33]} 30. Kg1 {[%emt 0:00:24]} Kg3 {[%emt 0:00:46]} 31. gxh7 {[%emt 0:03:28]} Qh2+ {[%emt 0:00:54]} 32. Kf1 {[%emt 0:00:23]} Bc4+ {[%emt 0:00:48]} 33. Ke1 {[%emt 0:00:23]} Nf3# {[%emt 0:00:16]} 0-1

[Event "DMP-III LIGA Senior PK 2020"]
[Site "Bystre"]
[Date "2020.07.08"]
[Round "1.11"]
[White "Materniak, Aleksander"]
[Black "Kielb, Miroslaw"]
[Result "1/2-1/2"]
[ECO "C78"]
[WhiteElo "1660"]
[BlackElo "1394"]
[Annotator "NA RC"]
[PlyCount "86"]
[EventDate "2020.07.05"]
[EventType "team-tourn"]
[EventCountry "POL"]
[SourceTitle "playchess.com"]
[Source "ChessBase"]
[SourceQuality "1"]
[TimeControl "5400+30"]

1. e4 {[%emt 0:00:00]} e5 {[%emt 0:00:00]} 2. Nf3 {[%emt 0:00:00]} Nc6 {[%emt 0:00:00]} 3. Bb5 {[%emt 0:00:00]} a6 {[%emt 0:00:00]} 4. Ba4 {[%emt 0:00:00]} Nf6 {[%emt 0:01:04]} 5. O-O {[%emt 0:00:08]} b5 {[%emt 0:00:46]} 6. Bb3 {[%emt 0:00:05]} Bc5 {[%emt 0:01:43]} 7. Re1 {[%emt 0:02:30]} O-O {[%emt 0:00:31]} 8. c3 {[%emt 0:01:15]} d6 {[%emt 0:01:39]} 9. h3 {[%emt 0:01:45]} Be6 {[%emt 0:01:46]} 10. Bc2 {[%emt 0:01:08]} Ne7 {[%emt 0:05:13]} 11. d4 {[%emt 0:04:22]} exd4 {[%emt 0:00:43]} 12. cxd4 {[%emt 0:01:23]} Bb6 {[%emt 0:00:29]} 13. Nbd2 {[%emt 0:04:26]} h6 {[%emt 0:04:49]} 14. Nf1 {[%emt 0:01:17]} Ng6 {[%emt 0:00:57]} 15. Ne3 {[%emt 0:03:11]} d5 {[%emt 0:03:36]} 16. e5 {[%emt 0:09:31]} Ne4 {[%emt 0:04:07]} 17. Nxd5 {[%emt 0:08:25]} Nxf2 {[%emt 0:02:36]} 18. Nf6+ {[%emt 0:04:35]} gxf6 {[%emt 0:09:44]} 19. Kxf2 {[%emt 0:05:11]} Kg7 {[%emt 0:03:36]} 20. Be3 {[%emt 0:12:42]} fxe5 {[%emt 0:04:49]} 21. dxe5 {[%emt 0:05:43]} Qxd1 {[%emt 0:10:26]} 22. Raxd1 {[%emt 0:01:56]} Bxe3+ {[%emt 0:01:39]} 23. Rxe3 {[%emt 0:01:34]} Nf4 {[%emt 0:04:11]} 24. Re4 {[%emt 0:04:27]} Nd5 {[%emt 0:00:51]} 25. Red4 {[%emt 0:01:41]} c6 {[%emt 0:00:52]} 26. Be4 {[%emt 0:03:16]} f5 {[%emt 0:01:47]} 27. exf6+ {[%emt 0:00:58]} Rxf6 {[%emt 0:00:21]} 28. g4 {[%emt 0:01:36]} Raf8 {[%emt 0:02:40]} 29. Kg3 {[%emt 0:01:40]} Nf4 {[%emt 0:03:53]} 30. R4d2 {[%emt 0:00:41]} Bd5 {[%emt 0:01:10]} 31. Bf5 {[%emt 0:05:53]} Bxf3 {[%emt 0:04:31]} 32. Kxf3 {[%emt 0:02:47]} Nxh3 {[%emt 0:00:33]} 33. Rd7+ {[%emt 0:01:00]} R8f7 {[%emt 0:00:53]} 34. Rxf7+ {[%emt 0:03:24]} Rxf7 {[%emt 0:02:03]} 35. Rd6 {[%emt 0:00:18]} Ng5+ {[%emt 0:01:10]} 36. Ke3 {[%emt 0:01:19]} Rf6 {[%emt 0:00:32]} 37. Rd7+ {[%emt 0:01:45]} Rf7 {[%emt 0:02:13]} 38. Rd6 {[%emt 0:00:26]} Rf6 {[%emt 0:00:28]} 39. Rd7+ {[%emt 0:00:34]} Rf7 {[%emt 0:00:35]} 40. Rd6 Rf6 41. Rxf6 Kxf6 42. Bc8 a5 43. Bd7 Ne6 1/2-1/2

[Event "DMP-III LIGA Senior PK 2020"]
[Site "Bystre"]
[Date "2020.07.08"]
[Round "1.12"]
[White "Wolak, Julia"]
[Black "Tarsa, Joanna"]
[Result "1/2-1/2"]
[ECO "B32"]
[WhiteElo "1516"]
[BlackElo "1574"]
[Annotator "NA RC"]
[PlyCount "50"]
[EventDate "2020.07.05"]
[EventType "team-tourn"]
[EventCountry "POL"]
[SourceTitle "playchess.com"]
[Source "ChessBase"]
[SourceQuality "1"]
[TimeControl "5400+30"]

1. e4 c5 2. Nf3 Nc6 3. d4 cxd4 4. Nxd4 e5 5. Nb5 d6 6. Be2 Nf6 7. Bg5 Be7 8. N1c3 a6 9. Na3 b5 10. Nd5 Nxe4 11. Nxe7 Nxe7 12. Bf3 Bb7 13. O-O O-O 14. c4 b4 15. Nc2 a5 16. Ne3 Qd7 17. Bxe7 Qxe7 18. Nf5 Qg5 19. Bxe4 Bxe4 20. Ng3 Qg6 21. Nxe4 Qxe4 22. Qxd6 Rfd8 23. Qe7 Re8 24. Qc5 Rec8 25. Qe7 Re8 1/2-1/2